[Event "Czech Juniors Girls 2024"]
[Site "Jaromerice nad Rokytnou"]
[Date "2024.03.12"]
[Round "4.1"]
[White "Trasakova, Adela"]
[Black "Zelbova, Lada"]
[Result "1/2-1/2"]
[ECO "D35"]
[WhiteElo "1935"]
[BlackElo "1954"]
[Annotator "RC"]
[PlyCount "80"]
[EventDate "2024.03.10"]
[EventType "tourn"]
[EventCountry "CZE"]
[SourceTitle "playchess.com"]
[Source "ChessBase"]
[SourceQuality "1"]
[WhiteTeam "Czech Republic"]
[BlackTeam "Czech Republic"]
[WhiteTeamCountry "CZE"]
[BlackTeamCountry "CZE"]
[TimeControl "40/5400+30:1800+30"]

1. d4 {[%emt 0:00:03]} Nf6 {[%emt 0:00:09]} 2. Nf3 {[%emt 0:00:08]} d5 {[%emt 0:00:08]} 3. c4 {[%emt 0:00:18]} e6 {[%emt 0:04:11]} 4. cxd5 {[%emt 0:03:49]} exd5 {[%emt 0:00:12]} 5. Nc3 {[%emt 0:02:05]} c6 {[%emt 0:01:20]} 6. Qc2 {[%emt 0:02:47]} Bd6 {[%emt 0:05:50]} 7. Bg5 {[%emt 0:02:39]} Be6 {[%emt 0:01:55]} 8. e3 {[%emt 0:01:00]} Nbd7 {[%emt 0:00:14]} 9. Bd3 {[%emt 0:00:39]} h6 {[%emt 0:00:48]} 10. Bh4 {[%emt 0:00:34]} O-O {[%emt 0:01:52]} 11. O-O {[%emt 0:03:22]} Qc7 {[%emt 0:02:18]} 12. Bg3 {[%emt 0:01:50]} Bxg3 {[%emt 0:00:43]} 13. hxg3 {[%emt 0:00:37]} Qd6 {[%emt 0:03:03]} 14. b4 {[%emt 0:11:48]} b5 {[%emt 0:03:34]} 15. a3 {[%emt 0:05:49]} Nb6 {[%emt 0:02:02]} 16. Nd2 {[%emt 0:07:50]} a5 {[%emt 0:06:41]} 17. Qb2 {[%emt 0:22:35]} Nc4 {[%emt 0:03:08]} 18. Bxc4 {[%emt 0:01:43]} dxc4 {[%emt 0:08:32]} 19. Nce4 {[%emt 0:02:23]} Nxe4 {[%emt 0:00:21]} 20. Nxe4 {[%emt 0:00:04]} Qe7 {[%emt 0:00:41]} 21. Nc5 {[%emt 0:01:46]} a4 {[%emt 0:01:56]} 22. Rfe1 {[%emt 0:02:58]} Qf6 {[%emt 0:06:44]} 23. Rad1 {[%emt 0:02:48]} h5 {[%emt 0:02:16]} 24. e4 {[%emt 0:02:54]} Rad8 {[%emt 0:02:37]} 25. Qc3 {[%emt 0:02:18]} Bg4 {[%emt 0:05:17]} 26. f3 {[%emt 0:00:50]} Be6 {[%emt 0:01:50]} 27. Qe3 {[%emt 0:00:28]} Qg6 {[%emt 0:05:02]} 28. Kf2 {[%emt 0:02:17]} f5 {[%emt 0:05:11]} 29. e5 {[%emt 0:04:25]} Rb8 {[%emt 0:05:09]} 30. Qf4 {[%emt 0:01:21]} Kf7 {[%emt 0:01:03]} 31. Ne4 {[%emt 0:01:26]} Rh8 {[%emt 0:02:02]} 32. Rh1 {[%emt 0:01:38]} Ke8 {[%emt 0:02:47]} 33. Nd6+ {[%emt 0:02:02]} Kd7 {[%emt 0:00:24]} 34. Rhe1 {[%emt 0:01:42]} Qh6 {[%emt 0:03:05]} 35. Qxh6 {[%emt 0:01:48]} Rxh6 {[%emt 0:00:24]} 36. Rh1 {[%emt 0:00:29]} Kc7 {[%emt 0:02:56]} 37. Ke3 {[%emt 0:01:05]} g5 {[%emt 0:03:25]} 38. Rh2 {[%emt 0:01:48]} Kb6 {[%emt 0:00:59]} 39. Re1 {[%emt 0:02:34]} Rbh8 {[%emt 0:01:06]} 40. Reh1 {[%emt 0:00:48]} R6h7 {[%emt 0:02:57]} 1/2-1/2

[Event "Czech Juniors Girls 2024"]
[Site "Jaromerice nad Rokytnou"]
[Date "2024.03.12"]
[Round "4.2"]
[White "Petirova, Iva"]
[Black "Nespora, Tatana"]
[Result "0-1"]
[ECO "B33"]
[WhiteElo "1846"]
[BlackElo "1839"]
[Annotator "NA RC"]
[PlyCount "94"]
[EventDate "2024.03.10"]
[EventType "tourn"]
[EventCountry "CZE"]
[SourceTitle "playchess.com"]
[Source "ChessBase"]
[SourceQuality "1"]
[WhiteTeam "Czech Republic"]
[BlackTeam "Czech Republic"]
[WhiteTeamCountry "CZE"]
[BlackTeamCountry "CZE"]
[TimeControl "40/5400+30:1800+30"]

1. e4 {[%emt 0:00:04]} c5 {[%emt 0:00:17]} 2. Nf3 {[%emt 0:00:14]} Nc6 {[%emt 0:00:20]} 3. d4 {[%emt 0:00:19]} cxd4 {[%emt 0:00:18]} 4. Nxd4 {[%emt 0:00:10]} Nf6 {[%emt 0:00:15]} 5. Nc3 {[%emt 0:00:30]} e5 {[%emt 0:00:20]} 6. Ndb5 {[%emt 0:00:17]} d6 {[%emt 0:00:23]} 7. Bg5 {[%emt 0:00:25]} a6 {[%emt 0:00:16]} 8. Na3 {[%emt 0:00:12]} b5 {[%emt 0:00:32]} 9. Bxf6 {[%emt 0:00:20]} gxf6 {[%emt 0:00:11]} 10. Nd5 {[%emt 0:00:18]} f5 {[%emt 0:00:48]} 11. Bxb5 {[%emt 0:01:01] 11.g3 wird zur Hauptvariante.} axb5 {[%emt 0:01:12]} 12. Nxb5 {[%emt 0:00:08]} Ra4 {[%emt 0:01:51]} 13. b4 {[%emt 0:00:37] B33: Sizilianisch (Lasker/Pelikan/Sweschnikow-Variante).} Rxb4 {[%emt 0:06:27]} 14. Nbc7+ {[%emt 0:00:24]} Kd7 {[%emt 0:04:28]} 15. O-O {[%emt 0:01:23] [#]} (15. exf5 $2 {too greedy.} Rd4 (15... Rb7 $2 16. Qh5 $19) 16. Qe2 Rxd5 17. Nxd5 Nd4 $19) 15... h5 $1 {[%emt 0:12:17]} 16. Qf3 $146 {[%emt 0:07:48]} (16. exf5 $2 {is the wrong capture.} Rb7 17. Qd3 Rxc7 $19) ({Predecessor:} 16. Nxb4 Nxb4 17. Rb1 Qxc7 18. Rxb4 Qc5 19. c3 f4 20. Qb3 Be7 21. Rb1 Rf8 22. Qa4+ Ke6 23. Rc4 Qxc4 24. Qxc4+ Kf6 25. a4 Be6 26. Qe2 Kg5 27. Rb7 {1-0 Agardi,N (2151)-Hovanecz,L (2017) HUN-chT2 Erkel 1415 2014 (9.5)}) 16... Nd4 {[%emt 0:20:18]} 17. Qh3 {[%emt 0:10:27] [#]} Rb7 $1 {[%emt 0:04:04]} 18. c3 {[%emt 0:13:24]} Ne2+ {[%emt 0:07:48]} 19. Kh1 {[%emt 0:00:05]} Qg5 {[%emt 0:01:55]} (19... Rxc7 $142 20. Qxf5+ Kc6) 20. Qd3 {[%emt 0:22:14]} Nf4 {[%emt 0:03:54]} 21. Nxf4 {[%emt 0:00:09]} Qxf4 {[%emt 0:00:50]} 22. Nd5 {[%emt 0:01:52]} fxe4 {[%emt 0:07:33]} 23. Qh3+ {[%emt 0:05:24]} Kd8 {[%emt 0:03:36]} 24. Nxf4 {[%emt 0:00:09]} Bxh3 {[%emt 0:00:06]} 25. Nxh3 {[%emt 0:00:04]} Be7 {[%emt 0:00:20]} 26. f4 {[%emt 0:04:26]} exf3 {[%emt 0:02:42]} 27. Rxf3 {[%emt 0:00:46]} Ke8 {[%emt 0:00:50]} 28. a4 {[%emt 0:01:37]} Ra7 {[%emt 0:01:02]} 29. c4 {[%emt 0:03:19]} f6 {[%emt 0:00:51]} 30. Nf2 {[%emt 0:00:16]} Kd7 {[%emt 0:01:09]} 31. Ne4 {[%emt 0:05:20]} Ke6 {[%emt 0:01:12]} 32. Nc3 {[%emt 0:02:42]} Rc7 {[%emt 0:01:56]} 33. a5 {[%emt 0:07:07]} (33. Nd5 $142 Rxc4 34. Nxe7 Kxe7 35. a5) 33... Rxc4 {[%emt 0:01:04]} 34. a6 {[%emt 0:00:16]} Ra8 {[%emt 0:00:15]} 35. Kg1 {[%emt 0:02:39]} d5 {[%emt 0:01:30]} 36. Nb5 {[%emt 0:01:56]} d4 {[%emt 0:03:56]} 37. a7 {[%emt 0:01:54]} e4 {[%emt 0:01:33]} 38. Ra6+ {[%emt 0:02:34]} Kf7 {[%emt 0:02:38]} 39. Rfxf6+ {[%emt 0:06:36]} Bxf6 {[%emt 0:04:16]} 40. Nd6+ {[%emt 0:00:05]} Ke7 {[%emt 0:00:21]} 41. Nxc4 {[%emt 0:30:16]} d3 {[%emt 0:30:32]} 42. Kf1 {[%emt 0:00:45]} Bd4 $19 {[%emt 0:00:51]} 43. Nd2 {[%emt 0:00:00]} e3 {[%emt 0:00:00]} 44. Nf3 {[%emt 0:00:00]} e2+ {[%emt 0:00:00]} 45. Ke1 {[%emt 0:00:00]} Bc3+ {[%emt 0:00:00]} 46. Nd2 {[%emt 0:00:00]} Rf8 {[%emt 0:00:00]} 47. g3 {[%emt 0:00:00]} Rf1# {[%emt 0:00:00]} 0-1

[Event "Czech Juniors Girls 2024"]
[Site "Jaromerice nad Rokytnou"]
[Date "2024.03.12"]
[Round "4.3"]
[White "Voriskova, Anna"]
[Black "Jakubse, Tamae Severina"]
[Result "1-0"]
[ECO "A29"]
[WhiteElo "1999"]
[BlackElo "1861"]
[Annotator "ChessBase"]
[PlyCount "241"]
[EventDate "2024.03.10"]
[EventType "tourn"]
[EventCountry "CZE"]
[SourceTitle "playchess.com"]
[Source "ChessBase"]
[SourceQuality "1"]
[WhiteTeam "Czech Republic"]
[BlackTeam "Czech Republic"]
[WhiteTeamCountry "CZE"]
[BlackTeamCountry "CZE"]
[TimeControl "40/5400+30:1800+30"]

1. c4 {[%emt 0:00:04]} e5 {[%emt 0:00:06]} 2. Nc3 {[%emt 0:00:14]} Nf6 {[%emt 0:00:06]} 3. g3 {[%emt 0:00:17]} Bb4 {[%emt 0:00:38]} 4. Bg2 {[%emt 0:00:30]} O-O {[%emt 0:00:24]} 5. Nf3 {[%emt 0:03:15]} Re8 {[%emt 0:04:37]} 6. O-O {[%emt 0:00:11]} e4 {[%emt 0:01:37]} 7. Nd4 {[%emt 0:01:40]} Nc6 {[%emt 0:01:27]} 8. Nc2 {[%emt 0:05:42]} Bxc3 {[%emt 0:00:53]} 9. dxc3 {[%emt 0:00:30]} d6 {[%emt 0:04:33]} 10. Ne3 {[%emt 0:01:40]} Be6 {[%emt 0:07:27]} 11. Qc2 {[%emt 0:01:02]} Qd7 {[%emt 0:00:58]} 12. Rd1 {[%emt 0:02:27]} Bh3 {[%emt 0:06:26]} 13. Bh1 {[%emt 0:02:53]} Re6 {[%emt 0:14:44]} 14. Nd5 {[%emt 0:07:53]} Bf5 {[%emt 0:02:06]} 15. Be3 {[%emt 0:17:33]} Rae8 {[%emt 0:07:28]} 16. Qa4 {[%emt 0:10:22]} h5 {[%emt 0:14:42]} 17. h4 {[%emt 0:11:25]} Bg4 {[%emt 0:06:25]} 18. Rd2 {[%emt 0:01:02]} Bf5 {[%emt 0:05:24]} 19. Rad1 {[%emt 0:00:38]} Ng4 {[%emt 0:01:01]} 20. c5 {[%emt 0:03:15]} Qc8 {[%emt 0:01:55]} 21. cxd6 {[%emt 0:01:37]} cxd6 {[%emt 0:01:45]} 22. Bg2 {[%emt 0:08:26]} b6 {[%emt 0:03:57]} 23. b3 {[%emt 0:02:41]} Qb7 {[%emt 0:04:30]} 24. Nf4 {[%emt 0:04:03]} Nxe3 {[%emt 0:04:23]} 25. fxe3 {[%emt 0:00:02]} Re5 {[%emt 0:02:47]} 26. Rxd6 {[%emt 0:01:15]} b5 {[%emt 0:00:44]} 27. Qa3 {[%emt 0:00:36]} Bg4 {[%emt 0:00:44]} 28. Qb2 {[%emt 0:02:15]} b4 {[%emt 0:00:36]} 29. cxb4 {[%emt 0:01:49]} Nxb4 {[%emt 0:00:06]} 30. Rd8 {[%emt 0:01:04]} Kh7 {[%emt 0:01:24]} 31. Rxe8 {[%emt 0:00:42]} Rxe8 {[%emt 0:00:03]} 32. Rd4 {[%emt 0:02:48]} f5 {[%emt 0:00:56]} 33. Qd2 {[%emt 0:00:39]} a5 {[%emt 0:00:41]} 34. Rd7 {[%emt 0:00:52]} Qb6 {[%emt 0:00:28]} 35. Qc3 {[%emt 0:01:28]} Rg8 {[%emt 0:00:46]} 36. a3 {[%emt 0:02:41]} Na6 {[%emt 0:00:32]} 37. Nd5 {[%emt 0:00:53]} Qe6 {[%emt 0:00:35]} 38. Ra7 {[%emt 0:02:33]} Qxd5 {[%emt 0:00:34]} 39. Rxa6 {[%emt 0:00:01]} Qd1+ {[%emt 0:00:15]} 40. Kh2 {[%emt 0:00:21]} Qxe2 {[%emt 0:01:12]} 41. Rd6 {[%emt 0:06:30]} Bf3 {[%emt 0:14:41]} 42. Rd2 {[%emt 0:04:07]} Qe1 {[%emt 0:04:04]} 43. Qxa5 {[%emt 0:16:31]} Qxe3 {[%emt 0:03:15]} 44. Qxf5+ {[%emt 0:00:04]} g6 {[%emt 0:02:30]} 45. Qd5 {[%emt 0:02:36]} Rg7 {[%emt 0:01:33]} 46. a4 {[%emt 0:00:21]} Bg4 {[%emt 0:01:28]} 47. Qd4 {[%emt 0:02:27]} Qxd4 {[%emt 0:01:54]} 48. Rxd4 {[%emt 0:00:01]} e3 {[%emt 0:00:32]} 49. Re4 {[%emt 0:00:17]} e2 {[%emt 0:00:10]} 50. Kg1 {[%emt 0:01:05]} Rc7 {[%emt 0:00:56]} 51. a5 {[%emt 0:00:39]} Rc3 {[%emt 0:01:44]} 52. b4 {[%emt 0:00:55]} Rxg3 {[%emt 0:01:07]} 53. Kf2 {[%emt 0:00:01]} Ra3 {[%emt 0:00:54]} 54. Re8 {[%emt 0:00:36]} Ra4 {[%emt 0:00:42]} 55. b5 {[%emt 0:01:22]} Kh6 {[%emt 0:01:59]} 56. b6 {[%emt 0:00:59]} Bd7 {[%emt 0:00:32]} 57. Re7 {[%emt 0:00:32]} Bc8 {[%emt 0:00:17]} 58. Re5 {[%emt 0:00:29]} Ba6 {[%emt 0:00:41]} 59. Re6 {[%emt 0:00:37]} Rxa5 {[%emt 0:00:32]} 60. Be4 {[%emt 0:00:22]} Kg7 {[%emt 0:00:28]} 61. b7 {[%emt 0:00:37]} Bxb7 {[%emt 0:00:14]} 62. Re7+ {[%emt 0:00:24]} Kf6 {[%emt 0:00:33]} 63. Rxb7 {[%emt 0:00:03]} Ra4 {[%emt 0:00:26]} 64. Bd3 {[%emt 0:00:38]} Rxh4 {[%emt 0:00:22]} 65. Rb6+ {[%emt 0:00:04]} Ke5 {[%emt 0:00:22]} 66. Rxg6 {[%emt 0:00:24]} Kd4 {[%emt 0:00:44]} 67. Bxe2 {[%emt 0:00:25]} Rh2+ {[%emt 0:00:12]} 68. Kf3 {[%emt 0:00:14]} Rh3+ {[%emt 0:00:54]} 69. Kf4 {[%emt 0:00:35]} Rh4+ {[%emt 0:00:32]} 70. Kg5 {[%emt 0:00:30]} Rh2 {[%emt 0:00:24]} 71. Bxh5 {[%emt 0:00:09]} Rg2+ {[%emt 0:00:12]} 72. Bg4 {[%emt 0:00:01]} Rb2 {[%emt 0:00:15]} 73. Re6 {[%emt 0:00:25]} Rb5+ {[%emt 0:00:17]} 74. Kf4 {[%emt 0:00:38]} Rb8 {[%emt 0:00:28]} 75. Rd6+ {[%emt 0:00:25]} Kc5 {[%emt 0:00:19]} 76. Rd1 {[%emt 0:00:10]} Rb4+ {[%emt 0:00:23]} 77. Kf5 {[%emt 0:00:13]} Rb2 {[%emt 0:00:21]} 78. Ke5 {[%emt 0:00:25]} Rg2 {[%emt 0:00:37]} 79. Rc1+ {[%emt 0:00:10]} Kb4 {[%emt 0:00:12]} 80. Bf3 {[%emt 0:00:31]} Rg5+ {[%emt 0:00:38]} 81. Kd4 {[%emt 0:00:04]} Rg8 {[%emt 0:00:57]} 82. Rb1+ {[%emt 0:00:10]} Ka3 {[%emt 0:00:38]} 83. Be2 {[%emt 0:01:08]} Ka4 {[%emt 0:01:22]} 84. Kc3 {[%emt 0:02:06]} Rg3+ {[%emt 0:00:22]} 85. Kc4 {[%emt 0:00:17]} Ka5 {[%emt 0:00:22]} 86. Bd3 {[%emt 0:01:50]} Rg4+ {[%emt 0:00:29]} 87. Kc5 {[%emt 0:00:02]} Rg5+ {[%emt 0:00:15]} 88. Kc6 {[%emt 0:00:04]} Rh5 {[%emt 0:00:40]} 89. Be2 {[%emt 0:00:24]} Rg5 {[%emt 0:00:18]} 90. Bc4 {[%emt 0:00:39]} Ka4 {[%emt 0:00:44]} 91. Rb8 {[%emt 0:00:55]} Rh5 {[%emt 0:00:35]} 92. Bd5 {[%emt 0:01:04]} Rh4 {[%emt 0:00:34]} 93. Kc5 {[%emt 0:00:45]} Ka3 {[%emt 0:00:23]} 94. Rb3+ {[%emt 0:00:23]} Ka4 {[%emt 0:00:09]} 95. Rb2 {[%emt 0:00:29]} Rh3 {[%emt 0:00:34]} 96. Rb8 {[%emt 0:00:41]} Ka3 {[%emt 0:00:26]} 97. Bc4 {[%emt 0:00:17]} Rh4 {[%emt 0:00:50]} 98. Rb3+ {[%emt 0:00:15]} Ka4 {[%emt 0:00:07]} 99. Rb1 {[%emt 0:00:24]} Ka3 {[%emt 0:00:37]} 100. Rb3+ {[%emt 0:00:25]} Ka4 {[%emt 0:00:05]} 101. Rb8 {[%emt 0:00:34]} Ka3 {[%emt 0:00:04]} 102. Bd3 {[%emt 0:00:37]} Rg4 {[%emt 0:00:38]} 103. Be2 {[%emt 0:00:23]} Rh4 {[%emt 0:00:13]} 104. Bf3 {[%emt 0:00:30]} Rf4 {[%emt 0:00:25]} 105. Bd5 {[%emt 0:00:46]} Rh4 {[%emt 0:00:10]} 106. Rb3+ {[%emt 0:00:13]} Ka4 {[%emt 0:00:07]} 107. Rg3 {[%emt 0:00:54]} Rh5 {[%emt 0:01:47]} 108. Re3 {[%emt 0:00:20]} Rg5 {[%emt 0:00:26]} 109. Kc4 {[%emt 0:00:35]} Ka5 {[%emt 0:01:04]} 110. Rb3 {[%emt 0:00:13]} Rg4+ {[%emt 0:00:25]} 111. Kc5 {[%emt 0:00:02]} Ka4 {[%emt 0:00:19]} 112. Rb1 {[%emt 0:00:33]} Ka3 {[%emt 0:00:21]} 113. Bf3 {[%emt 0:01:05]} Rh4 {[%emt 0:00:09]} 114. Be2 {[%emt 0:00:32]} Rf4 {[%emt 0:00:22]} 115. Bc4 {[%emt 0:00:24]} Rh4 {[%emt 0:00:09]} 116. Rb3+ {[%emt 0:00:11]} Ka4 {[%emt 0:00:07]} 117. Rg3 {[%emt 0:00:29]} Rh5+ {[%emt 0:01:13]} 118. Bd5 {[%emt 0:00:01]} Rf5 {[%emt 0:00:54]} 119. Rg8 {[%emt 0:01:10]} Ka3 {[%emt 0:00:17]} 120. Rg2 {[%emt 0:00:26]} Rf4 {[%emt 0:01:54]} 121. Ra2# {[%emt 0:00:09]} 1-0

[Event "Czech Juniors Girls 2024"]
[Site "Jaromerice nad Rokytnou"]
[Date "2024.03.12"]
[Round "4.4"]
[White "Fizerova, Lucie"]
[Black "Sulcova, Tereza Radmila"]
[Result "1-0"]
[ECO "B13"]
[WhiteElo "1886"]
[BlackElo "1835"]
[Annotator "NA RC"]
[PlyCount "105"]
[EventDate "2024.03.10"]
[EventType "tourn"]
[EventCountry "CZE"]
[SourceTitle "playchess.com"]
[Source "ChessBase"]
[SourceQuality "1"]
[WhiteTeam "Czech Republic"]
[BlackTeam "Czech Republic"]
[WhiteTeamCountry "CZE"]
[BlackTeamCountry "CZE"]
[TimeControl "40/5400+30:1800+30"]

1. e4 {[%emt 0:00:03]} g6 {[%emt 0:00:31]} 2. d4 {[%emt 0:00:46]} c6 {[%emt 0:00:39]} 3. c3 {[%emt 0:02:03]} d5 {[%emt 0:05:33]} 4. exd5 {[%emt 0:02:18]} cxd5 {[%emt 0:01:02]} 5. Bd3 {[%emt 0:00:38]} Nf6 {[%emt 0:03:58]} 6. h3 {[%emt 0:00:57]} Bg7 {[%emt 0:02:12]} 7. Nf3 {[%emt 0:00:59]} Nc6 {[%emt 0:02:30]} 8. O-O {[%emt 0:00:58]} O-O {[%emt 0:00:14]} 9. Bf4 {[%emt 0:03:24]} Be6 {[%emt 0:07:39] B13: Caro-Kann: Exchange Variation and Panov-Botvinnik Attack.} 10. Re1 {[%emt 0:06:47]} Qd7 {[%emt 0:07:19]} 11. Nbd2 {[%emt 0:03:50]} Bf5 {[%emt 0:04:04]} 12. Bf1 {[%emt 0:04:17]} Ne4 {[%emt 0:13:32]} 13. Nxe4 {[%emt 0:04:14]} Bxe4 {[%emt 0:00:32]} 14. Nd2 {[%emt 0:10:33]} Bf5 {[%emt 0:01:17]} 15. Nb3 {[%emt 0:00:59]} b6 {[%emt 0:09:09]} 16. a4 {[%emt 0:02:29]} a5 {[%emt 0:01:07]} 17. Bb5 {[%emt 0:01:02]} Be6 {[%emt 0:01:58]} 18. Nd2 {[%emt 0:02:16]} Qb7 {[%emt 0:04:00]} 19. Nf3 {[%emt 0:03:56]} Rfc8 {[%emt 0:12:12]} 20. Qe2 {[%emt 0:06:42]} Ra7 {[%emt 0:03:38]} 21. Rad1 {[%emt 0:05:03]} Nd8 {[%emt 0:00:48]} 22. Ng5 {[%emt 0:09:04]} h6 {[%emt 0:03:20]} 23. Nxe6 {[%emt 0:01:11]} Nxe6 {[%emt 0:00:08]} 24. Bh2 {[%emt 0:02:08]} Bf6 {[%emt 0:03:43]} 25. Bd3 {[%emt 0:01:29]} Nf8 {[%emt 0:03:33]} 26. Qe3 {[%emt 0:04:35]} Bg7 {[%emt 0:01:26]} 27. Re2 {[%emt 0:02:15]} Rc6 {[%emt 0:04:05]} 28. Rde1 {[%emt 0:03:00]} Re6 {[%emt 0:00:07]} 29. Qd2 {[%emt 0:00:18]} Rxe2 {[%emt 0:00:06]} 30. Qxe2 {[%emt 0:00:45]} Qc6 {[%emt 0:00:55]} 31. Bb5 {[%emt 0:02:35]} Qc8 {[%emt 0:00:45]} 32. Qf3 {[%emt 0:00:49]} e6 {[%emt 0:00:59]} 33. Qf4 {[%emt 0:01:08]} Nh7 {[%emt 0:01:00]} 34. Qd6 {[%emt 0:01:32]} Rb7 {[%emt 0:00:48]} 35. Ba6 {[%emt 0:00:33]} Bf8 {[%emt 0:00:21]} 36. Bxb7 {[%emt 0:00:30]} Qxb7 {[%emt 0:00:05]} 37. Qc7 {[%emt 0:00:11]} Qa6 {[%emt 0:00:33]} 38. Qb8 {[%emt 0:00:51]} Qc4 {[%emt 0:00:51]} 39. Qxb6 {[%emt 0:00:54]} Qxa4 {[%emt 0:00:08]} 40. Bc7 {[%emt 0:00:27]} Qa2 {[%emt 0:00:48]} 41. Qxa5 {[%emt 0:31:20]} Qxb2 {[%emt 0:30:08]} 42. Qa1 {[%emt 0:01:05]} Qd2 {[%emt 0:00:00]} 43. Rb1 {[%emt 0:00:00]} Nf6 {[%emt 0:00:00]} 44. Qb2 $18 {[%emt 0:00:00]} (44. Qa8 $142 Qxc3 45. Bd6) 44... Qd3 {[%emt 0:00:00]} 45. f3 {[%emt 0:00:00]} Qe3+ {[%emt 0:00:00]} 46. Kh1 {[%emt 0:00:00]} Bg7 {[%emt 0:00:00]} 47. Ra1 {[%emt 0:00:00]} Kh7 {[%emt 0:00:00]} 48. Ra8 {[%emt 0:00:00]} Qe1+ {[%emt 0:00:00]} 49. Kh2 {[%emt 0:00:00]} e5 {[%emt 0:00:00]} 50. Bxe5 {[%emt 0:00:00]} Ng4+ {[%emt 0:00:00]} 51. fxg4 {[%emt 0:00:00]} Bxe5+ {[%emt 0:00:00]} 52. dxe5 {[%emt 0:00:00]} Qxe5+ {[%emt 0:00:00]} 53. g3 {[%emt 0:00:00]} 1-0

[Event "Czech Juniors Girls 2024"]
[Site "Jaromerice nad Rokytnou"]
[Date "2024.03.12"]
[Round "4.5"]
[White "Nagyova, Daniela"]
[Black "Markina, Sofiia"]
[Result "1-0"]
[ECO "B12"]
[WhiteElo "1927"]
[BlackElo "1857"]
[Annotator "RC"]
[PlyCount "87"]
[EventDate "2024.03.10"]
[EventType "tourn"]
[EventCountry "CZE"]
[SourceTitle "playchess.com"]
[Source "ChessBase"]
[SourceQuality "1"]
[WhiteTeam "Czech Republic"]
[BlackTeam "Czech Republic"]
[WhiteTeamCountry "CZE"]
[BlackTeamCountry "CZE"]
[TimeControl "40/5400+30:1800+30"]

1. e4 {[%emt 0:00:04]} c6 {[%emt 0:00:10]} 2. d4 {[%emt 0:00:15]} d5 {[%emt 0:00:09]} 3. e5 {[%emt 0:00:15]} Bf5 {[%emt 0:00:09]} 4. c4 {[%emt 0:00:45]} e6 {[%emt 0:00:35]} 5. Nc3 {[%emt 0:00:29]} dxc4 {[%emt 0:00:50]} 6. Bxc4 {[%emt 0:00:42]} Nd7 {[%emt 0:00:30]} 7. h3 {[%emt 0:02:10]} Ne7 {[%emt 0:05:17]} 8. Nf3 {[%emt 0:01:28]} Nb6 {[%emt 0:06:46]} 9. Bb3 {[%emt 0:00:44]} Ned5 {[%emt 0:00:48]} 10. O-O {[%emt 0:03:53]} Be7 {[%emt 0:03:21]} 11. Re1 {[%emt 0:06:14]} O-O {[%emt 0:09:38]} 12. Bd2 {[%emt 0:05:57]} Nb4 {[%emt 0:13:24]} 13. Ne4 {[%emt 0:07:06]} Nd3 {[%emt 0:00:38]} 14. Re2 {[%emt 0:03:05]} Nd5 {[%emt 0:08:58]} 15. Bc3 {[%emt 0:10:17]} N3f4 {[%emt 0:05:49]} 16. Re1 {[%emt 0:00:53]} Bxe4 {[%emt 0:07:33]} 17. Rxe4 {[%emt 0:00:15]} f5 {[%emt 0:02:47]} 18. exf6 {[%emt 0:10:32]} Rxf6 {[%emt 0:00:06]} 19. Kh2 {[%emt 0:04:43]} Qf8 {[%emt 0:06:33]} 20. Bd2 {[%emt 0:08:02]} Bd6 {[%emt 0:05:38]} 21. Ne5 {[%emt 0:04:22]} Nd3 {[%emt 0:02:14]} 22. Qe2 {[%emt 0:07:07]} Nxe5 {[%emt 0:05:04]} 23. dxe5 {[%emt 0:00:25]} Rxf2 {[%emt 0:00:08]} 24. Qg4 {[%emt 0:04:01]} Qf5 {[%emt 0:03:58]} 25. exd6 {[%emt 0:03:20]} Qxg4 {[%emt 0:03:12]} 26. hxg4 {[%emt 0:00:13]} Rxd2 {[%emt 0:00:09]} 27. Rxe6 {[%emt 0:00:43]} Rd8 {[%emt 0:00:55]} 28. Rae1 {[%emt 0:02:27]} Rd7 {[%emt 0:04:59]} 29. Re8+ {[%emt 0:03:58]} Kf7 {[%emt 0:00:06]} 30. R8e7+ {[%emt 0:01:07]} Rxe7 {[%emt 0:00:24]} 31. Rxe7+ {[%emt 0:00:07]} Kf6 {[%emt 0:00:57]} 32. Bxd5 {[%emt 0:06:19]} Rxd5 {[%emt 0:00:15]} 33. Rxb7 {[%emt 0:00:32]} Rxd6 {[%emt 0:00:13]} 34. Rxa7 {[%emt 0:00:08]} Rd2 {[%emt 0:00:36]} 35. Rb7 {[%emt 0:01:35]} g5 {[%emt 0:00:37]} 36. a4 {[%emt 0:00:42]} h6 {[%emt 0:00:23]} 37. a5 {[%emt 0:00:24]} Rd8 {[%emt 0:00:25]} 38. a6 {[%emt 0:00:21]} Ke6 {[%emt 0:01:27]} 39. a7 {[%emt 0:00:57]} Ra8 {[%emt 0:00:04]} 40. Kg3 {[%emt 0:00:37]} Kd6 {[%emt 0:00:29]} 41. Kf3 {[%emt 0:04:35]} c5 {[%emt 0:00:09]} 42. Ke4 {[%emt 0:03:47]} Kc6 {[%emt 0:00:25]} 43. Rh7 {[%emt 0:04:34]} Kb6 {[%emt 0:00:26]} 44. Kf5 {[%emt 0:03:36]} 1-0

[Event "Czech Juniors Girls 2024"]
[Site "Jaromerice nad Rokytnou"]
[Date "2024.03.13"]
[Round "5.1"]
[White "Markina, Sofiia"]
[Black "Trasakova, Adela"]
[Result "1-0"]
[ECO "B13"]
[WhiteElo "1857"]
[BlackElo "1935"]
[Annotator "RC"]
[PlyCount "77"]
[EventDate "2024.03.10"]
[EventType "tourn"]
[EventCountry "CZE"]
[SourceTitle "playchess.com"]
[Source "ChessBase"]
[SourceQuality "1"]
[WhiteTeam "Czech Republic"]
[BlackTeam "Czech Republic"]
[WhiteTeamCountry "CZE"]
[BlackTeamCountry "CZE"]
[TimeControl "40/5400+30:1800+30"]

1. e4 {[%emt 0:00:04]} c6 {[%emt 0:00:05]} 2. d4 {[%emt 0:00:05]} d5 {[%emt 0:00:05]} 3. exd5 {[%emt 0:00:12]} cxd5 {[%emt 0:00:07]} 4. c4 {[%emt 0:00:10]} Nf6 {[%emt 0:00:12]} 5. Nc3 {[%emt 0:00:12]} Nc6 {[%emt 0:00:02]} 6. Nf3 {[%emt 0:00:16]} Bg4 {[%emt 0:00:55]} 7. cxd5 {[%emt 0:00:57]} Nxd5 {[%emt 0:00:06]} 8. Qb3 {[%emt 0:00:09]} Bxf3 {[%emt 0:00:20]} 9. gxf3 {[%emt 0:00:07]} e6 {[%emt 0:00:14]} 10. Qxb7 {[%emt 0:00:19]} Nxd4 {[%emt 0:00:06]} 11. Bb5+ {[%emt 0:00:17]} Nxb5 {[%emt 0:00:03]} 12. Qc6+ {[%emt 0:00:16]} Ke7 {[%emt 0:00:17]} 13. Qc5+ {[%emt 0:00:26]} Nd6 {[%emt 0:00:45]} 14. Nxd5+ {[%emt 0:00:18]} exd5 {[%emt 0:00:02]} 15. O-O {[%emt 0:00:18]} Kd7 {[%emt 0:15:36]} 16. Qxd5 {[%emt 0:01:09]} Be7 {[%emt 0:01:48]} 17. Rd1 {[%emt 0:02:34]} Rc8 {[%emt 0:19:15]} 18. Bf4 {[%emt 0:15:59]} Rc6 {[%emt 0:02:55]} 19. b4 {[%emt 0:03:54]} Qa8 {[%emt 0:07:32]} 20. a4 {[%emt 0:10:07]} Rb6 {[%emt 0:08:55]} 21. Qd3 {[%emt 0:04:21]} a5 {[%emt 0:07:05]} 22. b5 {[%emt 0:03:15]} Rd8 {[%emt 0:07:21]} 23. Rac1 {[%emt 0:20:30]} g6 {[%emt 0:10:12]} 24. Qe3 {[%emt 0:06:46]} Qb8 {[%emt 0:02:33]} 25. Rc6 {[%emt 0:01:03]} Rxc6 {[%emt 0:09:27]} 26. bxc6+ {[%emt 0:00:07]} Kc8 {[%emt 0:00:01]} 27. Qxe7 {[%emt 0:00:31]} Qc7 {[%emt 0:00:28]} 28. Qf6 {[%emt 0:03:10]} Ne8 {[%emt 0:01:56]} 29. Rxd8+ {[%emt 0:00:16]} Qxd8 {[%emt 0:00:06]} 30. Qxf7 {[%emt 0:00:35]} Nc7 {[%emt 0:01:41]} 31. Qxh7 {[%emt 0:00:34]} g5 {[%emt 0:00:51]} 32. Qxc7+ {[%emt 0:00:06]} Qxc7 {[%emt 0:00:04]} 33. Bxc7 {[%emt 0:00:05]} Kxc7 {[%emt 0:00:12]} 34. Kg2 {[%emt 0:00:06]} Kxc6 {[%emt 0:00:34]} 35. f4 {[%emt 0:00:39]} gxf4 {[%emt 0:01:44]} 36. Kf3 {[%emt 0:00:10]} Kc5 {[%emt 0:00:48]} 37. h4 {[%emt 0:00:20]} Kb4 {[%emt 0:00:20]} 38. h5 {[%emt 0:00:05]} Kxa4 {[%emt 0:00:02]} 39. h6 {[%emt 0:00:08]} 1-0